fUST/lending_fUST_20250226
["ID","MTS","AMOUNT","RATE_DAILY","PERIOD"]
[354586947,1740582654314,-500.0,0.00052602,120]
[354586948,1740582654323,-500.0,0.00052602,120]
[354586949,1740582654333,-500.0,0.00052602,120]
[354586950,1740582654342,-621.78,0.00052602,120]
[354586951,1740582654351,-542.4,0.00052602,120]
[354586952,1740582654361,-500.0,0.00052602,120]
[354586953,1740582654370,-501.15182719,0.00052602,120]
[354586954,1740582654379,-500.0,0.00052602,120]
[354586955,1740582654389,-500.0,0.00052602,120]
[354586956,1740582654398,-500.0,0.00052602,120]
[354586957,1740582654410,-500.0,0.00052602,120]
[354586958,1740582654421,-500.0,0.00052602,120]
[354586959,1740582654430,-517.28000001,0.00052602,120]
[354586960,1740582654441,-500.0,0.00052602,120]
[354586961,1740582654450,-575.70308805,0.00052602,120]
[354586962,1740582654460,-500.0,0.00052602,120]
[354586963,1740582654469,-517.70935846,0.00052602,120]
[354586964,1740582654479,-500.0,0.00052602,120]
[354586965,1740582654489,-521.21,0.00052602,120]
[354586966,1740582654499,-955.67,0.00052602,120]
[354586967,1740582654510,-500.0,0.00052602,120]
[354586968,1740582654526,-500.0,0.00052602,120]
[354586969,1740582654535,-500.0,0.00052602,120]
[354586970,1740582654545,-536.13676915,0.00052602,120]
[354586971,1740582654554,-500.0,0.00052602,120]
[354586972,1740582654563,-500.0,0.00052602,120]
[354586973,1740582654573,-500.0,0.00052602,120]
[354586974,1740582654583,-503.14613345,0.00052602,120]
[354586975,1740582654592,-581.92,0.00052602,120]
[354586976,1740582654602,-997.0,0.00052602,120]
[354586977,1740582654612,-500.0,0.00052602,120]
[354586978,1740582654622,-500.0,0.00052602,120]
[354586979,1740582654632,-500.0,0.00052602,120]
[354586980,1740582654641,-500.0,0.00052602,120]
[354586981,1740582654652,-1034.38,0.00052602,120]
[354586982,1740582654661,-2389.6,0.00052602,120]
[354586983,1740582654670,-500.0,0.00052602,120]
[354586984,1740582654680,-653.66,0.00052602,120]
[354586985,1740582654689,-521.19701814,0.00052602,120]
[354586986,1740582654699,-500.0,0.00052602,120]
[354586987,1740582654708,-823.29,0.00052602,120]
[354586988,1740582654718,-500.0,0.00052602,120]
[354586989,1740582654728,-500.0,0.00052602,120]
[354586990,1740582654738,-1114.61,0.00052602,120]
[354586991,1740582654747,-500.0,0.00052602,120]
[354586992,1740582654757,-500.0,0.00052602,120]
[354586993,1740582654766,-500.0,0.00052602,120]
[354586994,1740582654779,-501.93245644,0.00052602,120]
[354586995,1740582654789,-500.0,0.00052602,120]
[354586996,1740582654798,-500.0,0.00052602,120]
[354586997,1740582654807,-500.0,0.00052602,120]
[354586998,1740582654817,-1182.55,0.00052602,120]
[354586999,1740582654826,-500.0,0.00052602,120]
[354587000,1740582654836,-500.0,0.00052602,120]
[354587001,1740582654846,-500.0,0.00052602,120]
[354587002,1740582654858,-500.0,0.00052602,120]
[354587003,1740582654873,-500.0,0.00052602,120]
[354587004,1740582654887,-500.0,0.00052602,120]
[354587005,1740582654898,-500.0,0.00052602,120]
[354587006,1740582654908,-500.0,0.00052602,120]
[354587007,1740582654917,-500.0,0.00052602,120]
[354587008,1740582654927,-500.0,0.00052602,120]
[354587009,1740582654936,-586.94,0.00052602,120]
[354587010,1740582654946,-1070.2,0.00052602,120]
[354587011,1740582654955,-6432.63,0.00052602,120]
[354587012,1740582654965,-500.0,0.00052602,120]
[354587013,1740582654974,-500.0,0.00052602,120]
[354587014,1740582654984,-505.06246647,0.00052602,120]
[354587015,1740582654993,-500.0,0.00052602,120]
[354587016,1740582655002,-951.52,0.00052602,120]
[354587017,1740582655012,-3936.75,0.00052602,120]
[354587018,1740582655021,-500.0,0.00052602,120]
[354587019,1740582655033,-500.0,0.00052602,120]
[354587020,1740582655042,-500.0,0.00052602,120]
[354587021,1740582655051,-928.35,0.00052602,120]
[354587022,1740582655062,-500.0,0.00052602,120]
[354587023,1740582655071,-1078.97,0.00052602,120]
[354587024,1740582655080,-500.0,0.00052602,120]
[354587025,1740582655091,-500.0,0.00052602,120]
[354587026,1740582655100,-1547.81,0.00052602,120]
[354587027,1740582655109,-625.19,0.00052602,120]
[354587028,1740582655119,-500.0,0.00052602,120]
[354587029,1740582655128,-430.29231246,0.00052602,120]
[354587030,1740582655137,-500.0,0.00052602,28]
[354587031,1740582655147,-3598.8,0.00052602,120]
[354587032,1740582655156,-500.0,0.00052602,120]
[354587033,1740582655166,-236.743,0.00052602,120]
[354587034,1740582655176,-502.50529484,0.00052602,120]
[354587035,1740582655196,-1281.09,0.00052602,120]
[354587036,1740582655205,-2555.54,0.00052602,120]
[354587037,1740582655215,-500.0,0.00052602,120]
[354587038,1740582655224,-500.0,0.00052602,120]
[354587039,1740582655233,-500.0,0.00052602,120]
[354587040,1740582655243,-609.43,0.00052602,120]
[354587041,1740582655252,-500.0,0.00052602,120]
[354587042,1740582655261,-500.0,0.00052602,120]
[354587043,1740582655270,-500.0,0.00052602,120]
[354587044,1740582655283,-500.0,0.00052602,120]
[354587045,1740582655292,-500.0,0.00052602,120]
[354587046,1740582655302,-500.0,0.00052602,120]
[354587047,1740582655311,-500.0,0.00052602,120]
[354587048,1740582655320,-500.0,0.00052602,21]
[354587049,1740582655329,-707.68,0.00052602,120]
[354587050,1740582655339,-500.0,0.00052602,120]
[354587051,1740582655348,-8162.11,0.00052602,120]
[354587052,1740582655357,-500.0,0.00052602,120]
[354587053,1740582655366,-500.0,0.00052602,120]
[354587054,1740582655376,-8486.81,0.00052602,120]
[354587055,1740582655385,-517.45,0.00052602,120]
[354587056,1740582655399,-1333.1,0.00052602,120]
[354587057,1740582655408,-3032.01,0.00052602,120]
[354587058,1740582655419,-501.33809892,0.00052602,120]
[354587059,1740582655432,-500.0,0.00052602,120]
[354587060,1740582655446,-746.13,0.00052602,120]
[354587061,1740582655456,-2475.57,0.00052602,120]
[354587062,1740582655466,-500.0,0.00052602,120]
[354587063,1740582655478,-500.0,0.00052602,120]
[354587064,1740582655488,-500.0,0.00052602,120]
[354587065,1740582655498,-500.0,0.00052602,120]
[354587066,1740582655508,-500.0,0.00052602,120]
[354587067,1740582655517,-673.51,0.00052602,120]
[354587068,1740582655527,-500.0,0.00052602,120]
[354587069,1740582655536,-3779.2,0.00052602,120]
[354587070,1740582655547,-688.31,0.00052602,120]
[354587071,1740582655555,-500.0,0.00052602,120]
[354587072,1740582655714,-500.0,0.00052602,120]
[354587073,1740582655724,-1090.79,0.00052602,30]
[354587074,1740582655734,-500.0,0.00052602,120]
[354587075,1740582655743,-500.0,0.00052602,120]
[354587076,1740582655753,-500.0,0.00052602,120]
[354587077,1740582655762,-595.81,0.00052602,120]
[354587078,1740582655771,-500.91253704,0.00052602,120]
[354587079,1740582655782,-500.0,0.00052602,120]
[354587080,1740582655792,-500.0,0.00052602,120]
[354587081,1740582655801,-503.72364398,0.00052602,120]
[354587082,1740582655812,-547.31243735,0.00052602,120]
[354587083,1740582655821,-3296.99,0.00052602,120]
[354587084,1740582655831,-742.68,0.00052602,120]
[354587085,1740582655841,-964.08,0.00052602,120]
[354587086,1740582655852,-527.94,0.00052602,120]
[354587087,1740582655861,-9519.29,0.00052602,120]
[354587088,1740582655871,-500.0,0.00052602,120]
[354587089,1740582655881,-1542.06,0.00052602,120]
[354587090,1740582655891,-500.0,0.00052602,120]
[354587091,1740582655901,-500.0,0.00052602,120]
[354587092,1740582655911,-500.0,0.00052602,120]
[354587093,1740582655920,-1264.63,0.00052602,120]
[354587094,1740582655930,-1025.15,0.00052602,120]
[354587095,1740582655940,-3606.88,0.00052602,120]
[354587096,1740582655951,-1000.0,0.00052602,20]
[354587097,1740582655960,-8428.96,0.00052602,120]
[354587098,1740582655970,-374.74720964,0.00052602,120]
[354587099,1740582655979,-760.31,0.00052602,120]
[354587100,1740582655990,-500.0,0.00052602,120]
[354587101,1740582656001,-500.0,0.00052602,120]
[354587102,1740582656011,-500.0,0.00052602,120]
[354587103,1740582656022,-500.0,0.00052602,120]
[354587104,1740582656033,-500.0,0.00052602,120]
[354587105,1740582656043,-3189.79,0.00052602,120]
[354587106,1740582656052,-3246.43,0.00052602,120]
[354587107,1740582656061,-3967.72,0.00052602,120]
[354587108,1740582656070,-2316.45,0.00052602,120]
[354587109,1740582656080,-2414.8,0.00052602,120]
[354587110,1740582656090,-2015.83,0.00052602,120]
[354587111,1740582656100,-500.0,0.00052602,120]
[354587112,1740582656109,-500.0,0.00052602,120]
[354587113,1740582656118,-3413.25,0.00052602,120]
[354587114,1740582656127,-1703.27,0.00052602,120]
[354587115,1740582656137,-2692.46,0.00052602,120]
[354587116,1740582656147,-500.0,0.00052602,120]
[354587117,1740582656158,-500.0,0.00052602,120]
[354587118,1740582656167,-502.34656903,0.00052602,120]
[354587119,1740582656177,-500.0,0.00052602,120]
[354587120,1740582656186,-934.81,0.00052602,120]
[354587121,1740582656196,-804.42,0.00052602,120]
[354587122,1740582656207,-500.0,0.00052602,120]
[354587123,1740582656218,-500.0,0.00052602,120]
[354587124,1740582656227,-1157.19,0.00052602,120]
[354587125,1740582656238,-429.0355784,0.00052602,120]
[354587126,1740582656248,-500.0,0.00052602,120]
[354587127,1740582656259,-180842.23,0.00052602,7]
[354587128,1740582656268,-2356.15,0.00052602,120]
[354587129,1740582656279,-500.0,0.00052602,120]
[354587130,1740582656289,-772.61,0.00052602,120]
[354587131,1740582656298,-500.0,0.00052602,120]
[354587132,1740582656307,-500.0,0.00052602,120]
[354587133,1740582656316,-500.0,0.00052602,120]
[354587134,1740582656326,-500.0,0.00052602,120]
[354587135,1740582656335,-500.0,0.00052602,120]
[354587136,1740582656344,-21465.31,0.00052602,120]
[354587137,1740582656354,-500.0,0.00052602,120]
[354587138,1740582656363,-500.0,0.00052602,120]
[354587139,1740582656374,-500.0,0.00052602,120]
[354587140,1740582656383,-663.65,0.00052602,120]
[354587141,1740582656394,-3569.24,0.00052602,120]
[354587142,1740582656404,-500.0,0.00052602,120]
[354587143,1740582656416,-500.0,0.00052602,30]
[354587144,1740582656426,-1299.27,0.00052602,120]
[354587145,1740582656435,-500.0,0.00052602,120]
[354587146,1740582656444,-500.0,0.00052602,120]
[354587147,1740582656454,-500.0,0.00052602,120]
[354587148,1740582656464,-500.0,0.00052602,120]
[354587149,1740582656474,-3437.25,0.00052602,120]
[354587150,1740582656485,-500.0,0.00052602,120]
[354587151,1740582656495,-500.0,0.00052602,120]
[354587152,1740582656506,-1053.45,0.00052602,120]
[354587153,1740582656516,-2479.38,0.00052602,120]
[354587154,1740582656528,-500.0,0.00052602,120]
[354587155,1740582656537,-500.0,0.00052602,120]
[354587156,1740582656546,-500.0,0.00052602,120]
[354587157,1740582656555,-500.0,0.00052602,120]
[354587158,1740582656564,-500.0,0.00052602,120]
[354587159,1740582656573,-3549.64,0.00052602,120]
[354587160,1740582656582,-500.0,0.00052602,120]
[354587161,1740582656591,-500.0,0.00052602,120]
[354587162,1740582656601,-3646.9,0.00052602,120]
[354587163,1740582656610,-783.2,0.00052602,120]
[354587164,1740582656620,-500.0,0.00052602,120]
[354587165,1740582656630,-1026.76,0.00052602,120]
[354587166,1740582656639,-500.0,0.00052602,120]
[354587167,1740582656649,-500.0,0.00052602,120]
[354587168,1740582656658,-500.0,0.00052602,120]
[354587169,1740582656668,-500.0,0.00052602,120]
[354587170,1740582656678,-500.0,0.00052602,120]
[354587171,1740582656687,-500.0,0.00052602,120]
[354587172,1740582656697,-3465.77,0.00052602,120]
[354587173,1740582656707,-738.52,0.00052602,120]
[354587174,1740582656716,-500.0,0.00052602,120]
[354587175,1740582656726,-500.0,0.00052602,120]
[354587176,1740582656735,-500.0,0.00052602,120]
[354587177,1740582656744,-175.21914718,0.00052602,120]
[354587178,1740582656754,-500.0,0.00052602,120]
[354587179,1740582656763,-500.0,0.00052602,120]
[354587180,1740582656772,-500.0,0.00052602,120]
[354587181,1740582656784,-650.66,0.00052602,120]
[354587182,1740582656793,-500.0,0.00052602,120]
[354587183,1740582656803,-501.99,0.00052602,120]
[354587184,1740582656812,-1900.51,0.00052602,120]
[354587185,1740582656821,-502.19049988,0.00052602,120]
[354587186,1740582656830,-1405.63,0.00052602,120]
[354587187,1740582656840,-501.70713642,0.00052602,120]
[354587188,1740582656849,-500.0,0.00052602,120]
[354587189,1740582656859,-3497.71,0.00052602,120]
[354587190,1740582656867,-270.90797602,0.00052602,120]
[354587191,1740582656876,-561.11399611,0.00052602,120]
[354587192,1740582656885,-500.0,0.00052602,120]
[354587193,1740582656894,-1635.01,0.00052602,120]
[354587194,1740582656903,-500.0,0.00052602,120]
[354587195,1740582656912,-500.0,0.00052602,120]
[354587196,1740582656922,-1436.71,0.00052602,120]
[354587197,1740582656931,-1133.84,0.00052602,120]
[354587198,1740582656940,-500.0,0.00052602,120]
[354587199,1740582656950,-500.0,0.00052602,120]
[354587200,1740582656960,-1325.23,0.00052602,120]
[354587201,1740582656969,-500.0,0.00052602,120]
[354587202,1740582656979,-500.0,0.00052602,30]
[354587203,1740582656988,-601.35862283,0.00052602,120]
[354587204,1740582656998,-827.44,0.00052602,120]
[354587205,1740582657007,-1014.84,0.00052602,2]
[354587206,1740582657016,-500.0,0.00052602,120]
[354587207,1740582657027,-500.0,0.00052602,120]
[354587208,1740582657037,-500.0,0.00052602,120]
[354587209,1740582657047,-500.0,0.00052602,120]
[354587210,1740582657056,-500.0,0.00052602,120]
[354587211,1740582657065,-2185.08,0.00052602,120]
[354587212,1740582657074,-930.24,0.00052602,120]
[354587213,1740582657084,-500.0,0.00052602,120]
[354587214,1740582657093,-500.0,0.00052602,120]
[354587215,1740582657102,-500.0,0.00052602,120]
[354587216,1740582657112,-411.46420398,0.00052602,20]
[354587217,1740582657122,-500.0,0.00052602,120]
[354587218,1740582657132,-869.77,0.00052602,120]
[354587219,1740582657142,-3192.36,0.00052602,120]
[354587220,1740582657152,-500.0,0.00052602,120]
[354587221,1740582657161,-500.0,0.00052602,120]
[354587222,1740582657170,-782.75,0.00052602,120]
[354587223,1740582657180,-500.0,0.00052602,120]
[354587224,1740582657190,-500.0,0.00052602,120]
[354587225,1740582657200,-933.61,0.00052602,120]
[354587226,1740582657209,-500.0,0.00052602,120]
[354587227,1740582657219,-1017.94,0.00052602,120]
[354587228,1740582657229,-1576.67,0.00052602,120]
[354587229,1740582657238,-1060.46247101,0.00052602,120]
[354587230,1740582657548,-74.74752899,0.00052602,120]
[354587231,1740582657558,-1734.07,0.00052602,120]
[354587232,1740582657568,-500.0,0.00052602,120]
[354587233,1740582657578,-500.0,0.00052602,120]
[354587234,1740582657588,-500.0,0.00052602,120]
[354587235,1740582657599,-501.82938829,0.00052602,120]
[354587236,1740582657608,-500.0,0.00052602,120]
[354587237,1740582657618,-500.0,0.00052602,120]
[354587238,1740582657628,-10189.79859168,0.00052602,6]
[354587239,1740582657639,-875.22,0.00052602,6]
[354587240,1740582657651,-36437.64140832,0.00052602,6]
[354587241,1740582657660,-501.25377587,0.00052602,120]
[354587242,1740582657670,-1010.63,0.00052602,120]
[354587243,1740582657680,-504.13477604,0.00052602,120]
[354587244,1740582657689,-500.0,0.00052602,120]
[354587245,1740582657699,-744.75,0.00052602,120]
[354587246,1740582657709,-500.0,0.00052602,120]
[354587247,1740582657718,-895.15,0.00052602,120]
[354587248,1740582657727,-3077.9,0.00052602,120]
[354587249,1740582657737,-2932.31,0.00052602,120]
[354587250,1740582657746,-1709.266725,0.00052602,60]
[354587251,1740582657756,-500.0,0.00052602,120]
[354587252,1740582657765,-660.22,0.00052602,120]
[354587253,1740582657774,-1443.43,0.00052602,120]
[354587254,1740582657786,-500.0,0.00052602,120]
[354587255,1740582657795,-2022.63,0.00052602,120]
[354587256,1740582657804,-168.77003781,0.00052602,120]
[354587257,1740582657813,-500.0,0.00052602,120]
[354587258,1740582657822,-500.93917807,0.00052602,120]
[354587259,1740582657831,-500.0,0.00052602,120]
[354587260,1740582657840,-1137.47,0.00052602,120]
[354587261,1740582657850,-3813.12,0.00052602,120]
[354587262,1740582657859,-500.0,0.00052602,120]
[354587263,1740582657869,-500.0,0.00052602,120]
[354587264,1740582657878,-500.0,0.00052602,120]
[354587265,1740582657888,-1397.54,0.00052602,120]
[354587266,1740582657898,-589.75371842,0.00052602,120]
[354587267,1740582657907,-500.0,0.00052602,120]
[354587268,1740582657917,-598.48,0.00052602,120]
[354587269,1740582657926,-500.0,0.00052602,120]
[354587270,1740582657935,-1928.03,0.00052602,120]
[354587271,1740582657944,-247.13201406,0.00052602,120]
[354587272,1740582657954,-731.46,0.00052602,120]
[354587273,1740582657964,-15010.76,0.00052602,120]
[354587274,1740582657973,-2262.11,0.00052602,120]
[354587275,1740582657983,-500.0,0.00052602,120]
[354587276,1740582657992,-3000.0,0.00052602,120]
[354587277,1740582658002,-500.0,0.00052602,120]
[354587278,1740582658012,-504.25076333,0.00052602,120]
[354587279,1740582658022,-653.68,0.00052602,120]
[354587280,1740582658032,-667.46,0.00052602,120]
[354587281,1740582658042,-1823.46,0.00052602,120]
[354587282,1740582658051,-685.54,0.00052602,120]
[354587283,1740582658061,-500.0,0.00052602,10]
[354587284,1740582658070,-500.0,0.00052602,120]
[354587285,1740582658079,-3114.67,0.00052602,120]
[354587286,1740582658089,-2387.3,0.00052602,120]
[354587287,1740582658098,-500.0,0.00052602,120]
[354587288,1740582658108,-500.0,0.00052602,120]
[354587289,1740582658118,-500.0,0.00052602,120]
[354587290,1740582658128,-500.0,0.00052602,120]
[354587291,1740582658138,-1462.65,0.00052602,120]
[354587292,1740582658147,-500.0,0.00052602,120]
[354587293,1740582658158,-507.94183213,0.00052602,120]
[354587294,1740582658168,-500.0,0.00052602,120]
[354587295,1740582658178,-1209.39,0.00052602,120]
[354587296,1740582658187,-500.0,0.00052602,120]
[354587297,1740582658197,-500.0,0.00052602,120]
[354587298,1740582658207,-500.0,0.00052602,120]
[354587299,1740582658376,-500.0,0.00052602,120]
[354587300,1740582658387,-859.14,0.00052602,120]
[354587301,1740582658397,-500.0,0.00052602,120]
[354587302,1740582658409,-250.0,0.00052602,120]
[354587303,1740582658419,-630.27,0.00052602,120]
[354587304,1740582658428,-5410.14,0.00052602,120]
[354587305,1740582658437,-500.0,0.00052602,120]
[354587306,1740582658448,-500.0,0.00052602,120]
[354587307,1740582658460,-829.85,0.00052602,120]
[354587308,1740582658470,-500.0,0.00052602,120]
[354587309,1740582658479,-1000.0,0.00052602,120]
[354587310,1740582658491,-500.0,0.00052602,120]
[354587311,1740582658501,-595.05,0.00052602,120]
[354587312,1740582658511,-230.87029926,0.00052776,2]
[354587313,1740582658521,-567.34905296,0.00052795,7]
[354587314,1740582658532,-649.90987727,0.00052795,10]
[354587315,1740582658542,-618.0,0.00053,120]
[354587316,1740582658551,-618.0,0.00053,120]
[354587317,1740582658561,-309.0,0.00053,120]
[354587318,1740582658571,-1000.0,0.00053,120]
[354587319,1740582658581,-1000.0,0.00053,120]
[354587320,1740582658591,-309.0,0.00053,120]
[354587321,1740582658601,-309.0,0.00053,120]
[354587322,1740582658610,-309.0,0.00053,120]
[354587323,1740582658619,-618.0,0.00053,120]
[354587324,1740582658628,-1070.98335148,0.00053009,2]
[354587325,1740582658638,-230.87029926,0.0005305,2]
[354587326,1740582658647,-2000.03,0.0005315,120]
[354587327,1740582658657,-500.0,0.0005315,120]
[354587328,1740582658667,-500.0,0.0005315,120]
[354587329,1740582658677,-500.0,0.0005315,120]
[354587330,1740582658687,-500.0,0.0005315,120]
[354587331,1740582658698,-500.0,0.0005315,120]
[354587332,1740582658707,-500.0,0.0005315,120]
[354587333,1740582658716,-500.0,0.0005315,120]
[354587334,1740582658727,-1000.0,0.0005315,120]
[354587335,1740582658736,-500.0,0.0005315,120]
[354587336,1740582658746,-1000.0,0.0005315,120]
[354587337,1740582658755,-500.0,0.0005315,120]
[354587338,1740582658764,-500.0,0.0005315,120]
[354587339,1740582658775,-549.98,0.0005315,120]
[354587340,1740582658786,-500.0,0.0005315,120]
[354587341,1740582658797,-500.0,0.0005315,120]
[354587342,1740582658808,-500.0,0.0005315,120]
[354587343,1740582658819,-2030.21,0.0005315,120]
[354587344,1740582658830,-640.38,0.0005315,120]
[354587345,1740582658839,-500.0,0.0005315,120]
[354587346,1740582658849,-738.42,0.0005315,120]
[354587347,1740582658859,-667.03,0.0005315,120]
[354587348,1740582658868,-500.0,0.0005315,120]
[354587349,1740582658878,-1685.13,0.0005315,120]
[354587350,1740582658887,-500.0,0.0005315,120]
[354587351,1740582658896,-504.1030797,0.0005315,120]
[354587352,1740582658906,-505.6646325,0.0005315,120]
[354587353,1740582658917,-500.0,0.0005315,120]
[354587354,1740582658927,-500.0,0.0005315,120]
[354587355,1740582658937,-918.49,0.0005315,120]
[354587356,1740582658946,-500.0,0.0005315,120]
[354587357,1740582658956,-555.85204641,0.0005315,120]
[354587358,1740582658965,-500.0,0.0005315,120]
[354587359,1740582658974,-500.0,0.0005315,120]
[354587360,1740582658983,-500.0,0.0005315,120]
[354587361,1740582658992,-610.34,0.0005315,120]
[354587362,1740582659002,-3585.65,0.0005315,120]
[354587363,1740582659011,-631.04,0.0005315,120]
[354587364,1740582659020,-545.26,0.0005315,120]
[354587365,1740582659031,-500.0,0.0005315,120]
[354587366,1740582659040,-1444.88,0.0005315,120]
[354587367,1740582659049,-606.22781097,0.0005315,120]
[354587368,1740582659059,-500.0,0.0005315,120]
[354587369,1740582659068,-500.0,0.0005315,120]
[354587370,1740582659077,-2086.2,0.0005315,120]
[354587371,1740582659087,-501.8398331,0.0005315,120]
[354587372,1740582659096,-259.55441264,0.0005315,120]
[354587373,1740582659106,-500.0,0.0005315,120]
[354587374,1740582659115,-500.0,0.0005315,120]
[354587375,1740582659124,-500.0,0.0005315,120]
[354587376,1740582659134,-500.0,0.0005315,120]
[354587377,1740582659143,-500.0,0.0005315,120]
[354587378,1740582659153,-500.0,0.0005315,120]
[354587379,1740582659163,-1126.82,0.0005315,120]
[354587380,1740582659172,-535.69,0.0005315,120]
[354587381,1740582659182,-500.0,0.0005315,120]
[354587382,1740582659191,-364.60421084,0.0005315,120]
[354587383,1740582659201,-500.0,0.0005315,120]
[354587384,1740582659210,-675.33,0.0005315,120]
[354587385,1740582659220,-503.41771493,0.0005315,120]
[354587386,1740582659231,-500.0,0.0005315,120]
[354587387,1740582659241,-2245.8,0.0005315,120]
[354587388,1740582659250,-500.0,0.0005315,120]
[354587389,1740582659259,-500.0,0.0005315,120]
[354587390,1740582659270,-500.0,0.0005315,120]
[354587391,1740582659280,-1293.49,0.0005315,120]
[354587392,1740582659289,-501.8020352,0.0005315,120]
[354587393,1740582659299,-585.13,0.0005315,120]
[354587394,1740582659308,-500.0,0.0005315,120]
[354587395,1740582659318,-500.0,0.0005315,120]
[354587396,1740582659327,-2221.83,0.0005315,120]
[354587397,1740582659336,-500.0,0.0005315,120]
[354587398,1740582659346,-500.0,0.0005315,120]
[354587399,1740582659355,-1116.98,0.0005315,120]
[354587400,1740582659364,-500.0,0.0005315,120]
[354587401,1740582659374,-300.0,0.0005315,120]
[354587402,1740582659383,-500.0,0.0005315,120]
[354587403,1740582659396,-500.0,0.0005315,120]
[354587404,1740582659406,-623.42,0.0005315,120]
[354587405,1740582659415,-500.0,0.0005315,120]
[354587406,1740582659425,-500.0,0.0005315,120]
[354587407,1740582659435,-500.0,0.0005315,120]
[354587408,1740582659444,-500.0,0.0005315,120]
[354587409,1740582659454,-500.0,0.0005315,120]
[354587410,1740582659466,-621.78,0.0005315,120]
[354587411,1740582659475,-542.4,0.0005315,120]
[354587412,1740582659484,-500.0,0.0005315,120]
[354587413,1740582659494,-500.0,0.0005315,120]
[354587414,1740582659503,-494.21194493,0.0005315,120]
[354587415,1740582659512,-305.01831373,0.0005315,120]
[354587416,1740582659522,-381.69757279,0.0005315,120]
[354587417,1740582659533,-500.0,0.0005315,120]
[354587418,1740582659543,-500.0,0.0005315,120]
[354587419,1740582659553,-500.0,0.0005315,120]
[354587420,1740582659562,-500.0,0.0005315,120]
[354587421,1740582659571,-521.21,0.0005315,120]
[354587422,1740582659581,-955.67,0.0005315,120]
[354587423,1740582659591,-500.0,0.0005315,120]
[354587424,1740582659601,-500.0,0.0005315,120]
[354587425,1740582659611,-500.0,0.0005315,120]
[354587426,1740582659620,-500.0,0.0005315,120]
[354587427,1740582659629,-500.0,0.0005315,120]
[354587428,1740582659639,-500.0,0.0005315,120]
[354587429,1740582659648,-581.92,0.0005315,120]
[354587430,1740582659657,-997.0,0.0005315,120]
[354587431,1740582659667,-500.0,0.0005315,120]
[354587432,1740582659676,-500.0,0.0005315,120]
[354587433,1740582659686,-500.0,0.0005315,120]
[354587434,1740582659695,-500.0,0.0005315,120]
[354587435,1740582659705,-1034.38,0.0005315,120]
[354587436,1740582659714,-2389.6,0.0005315,120]
[354587437,1740582659723,-500.0,0.0005315,120]
[354587438,1740582659733,-653.66,0.0005315,120]
[354587439,1740582659742,-500.0,0.0005315,120]
[354587440,1740582659752,-823.29,0.0005315,120]
[354587441,1740582659762,-500.0,0.0005315,120]
[354587442,1740582659772,-500.0,0.0005315,120]
[354587443,1740582659785,-1114.61,0.0005315,120]
[354587444,1740582659794,-500.0,0.0005315,120]
[354587445,1740582659804,-500.0,0.0005315,120]
[354587446,1740582659813,-500.0,0.0005315,120]